[Event "CCT Airthings Masters Play-In 2023"]
[Site "Online"]
[Date "2023.02.03"]
[Round "4"]
[White "Perez Ponsa, Federico"]
[Black "Baku_Boulevard"]
[Result "1/2-1/2"]
[ECO "B31"]
[WhiteElo "2532"]
[BlackElo "2676"]
[Annotator "TA"]
[PlyCount "159"]
[EventDate "2023.02.03"]
[EventType "swiss"]
[EventCountry "NET"]
[SourceTitle "playchess.com"]
[Source "ChessBase"]
[SourceQuality "1"]
[TimeControl "600+2"]

{[%evp 17,159,8,0,0,14,0,16,19,11,0,0,6,8,0,26,22,18,1,2,2,7,0,0,0,0,0,0,0,0,0,0,0,0,0,0,0,0,-13,0,-24,-16,-29,0,-13,-25,-104,-42,-41,-46,-105,-79,-463,-422,-957,-907,-1505,-585,-554,-266,-260,-229,-226,-133,-150,-128,-138,-96,-97,-96,-108,-97,-108,-108,-130,-125,-121,-108,-101,-71,-91,-71,-70,-70,-70,-70,-70,-70,-70,-23,-23,-23,-29,-31,-30,-30,-30,-32,-39,-23,-39,-40,-65,-65,-72,0,0,0,0,0,0,0,0,0,-41,0,0,0,0,0,0,0,-119,-128,-128,0,0,0,0,0,0,0,0,0,0,0,0,0,0,0,0,0,0,0,0]} 1. e4 {[%emt 0:00:14]} c5 {[%emt 0:00:47]} 2. Nf3 {[%emt 0:00:01]} Nc6 {[%emt 0:00:02]} 3. Bb5 {[%emt 0:00:01]} g6 {[%emt 0:00:01]} 4. O-O {[%emt 0:00:01]} Bg7 {[%emt 0:00:01]} 5. c3 {[%emt 0:00:00]} Nf6 {[%emt 0:00:02]} 6. Re1 {[%emt 0:00:02]} O-O {[%emt 0:00:09]} 7. d4 {[%emt 0:00:01]} d5 {[%emt 0:00:18]} 8. e5 {[%emt 0:00:01]} Ne4 {[%emt 0:00:02]} 9. Bxc6 {[%emt 0:00:01]} bxc6 {[%emt 0:00:02]} 10. Be3 $1 {[%emt 0:00:01][%mdl 4] outshines the older 10.Nbd2. B31: Sicilian: 2...Nc6 3 Bb5 g6.} Rb8 {[%emt 0:00:03]} 11. Qc1 {[%emt 0:00:24]} cxd4 {[%emt 0:00:02]} 12. cxd4 {[%emt 0:00:01]} Bf5 {[%emt 0:00:03]} 13. Nc3 {[%emt 0:00:08]} f6 {[%emt 0:00:04]} 14. exf6 {[%emt 0:00:25]} exf6 {[%emt 0:00:02]} 15. Nxe4 {[%emt 0:00:06]} Bxe4 {[%emt 0:00:03]} 16. Nd2 {[%emt 0:00:02][%cal Bf3d2,Bd2b3,Bb3c5][%mdl 32]} Qd7 {[%emt 0:00:42]} 17. f3 {[%emt 0:02:09]} Bf5 {[%emt 0:00:10]} 18. Nb3 {[%emt 0:00:01] [#]} g5 $146 {[%emt 0:00:03]} ({Predecessor:} 18... Rfe8 19. Nc5 Qf7 20. Qc3 Bf8 21. b3 Bd6 22. Bf2 Rxe1+ 23. Rxe1 Re8 24. g4 Bc8 {½-½ Khegay,D (2530)-Schekachikhin,M (2424) Cheliabinsk Variation-A 2022 (9)}) 19. Nc5 {[%emt 0:00:08]} Qf7 {[%emt 0:00:01]} 20. Bf2 {[%emt 0:00:10]} Rfe8 {[%emt 0:00:07]} 21. Qd2 {[%emt 0:00:01]} Bf8 {[%emt 0:00:02]} 22. b3 {[%emt 0:00:06]} h5 {[%emt 0:00:06]} 23. h4 {[%emt 0:00:21]} Qg6 {[%emt 0:00:24]} 24. Rxe8 {[%emt 0:00:07]} Rxe8 {[%emt 0:00:02]} 25. Re1 {[%emt 0:00:04]} Rxe1+ {[%emt 0:00:16]} 26. Qxe1 {[%emt 0:00:02]} g4 {[%emt 0:00:00]} 27. Kh2 {[%emt 0:00:18]} Bc8 $40 {[%emt 0:00:37][%mdl 128] Black mounts an attack.} 28. Bg3 {[%emt 0:00:25]} gxf3 {[%emt 0:00:28]} 29. gxf3 {[%emt 0:00:01]} Qf5 {[%emt 0:00:03]} 30. Qf2 {[%emt 0:00:15] Active counter play!} Kf7 {[%emt 0:00:03]} 31. Qg2 {[%emt 0:00:10]} (31. Kg1 $11) 31... Bxc5 {[%emt 0:00:21]} (31... Bh6 $1 $17 32. Be1 Be3) 32. dxc5 $17 {[%emt 0:00:01][%mdl 4096] Endgame KQB-KQB} d4 {[%emt 0:00:00][%cal Bd5d4,Bd4d3][%mdl 32]} 33. b4 {[%emt 0:00:48]} (33. Bd6 $15) 33... d3 {[%emt 0:00:02][%cal Od3d2] White must now prevent ...d2!} 34. Be1 {[%emt 0:00:23][%mdl 8192]} (34. Kg1 $17) 34... Qe5+ $1 $19 {[%emt 0:00:24]} 35. Bg3 {[%emt 0:00:11]} (35. Qg3 $142 Qe2+ 36. Kg1) 35... Qe3 {[%emt 0:00:15]} 36. Bf2 {[%emt 0:01:06] Prevents d2} Qf4+ {[%emt 0:00:02]} (36... Qe2 $142 {[%cal Od3d2] ( -> ...d2!)} 37. Qg3 Bd7) 37. Bg3 {[%emt 0:00:06]} Qxb4 {[%emt 0:00:01]} (37... Qc1 $142 38. Qf2 d2) 38. a3 {[%emt 0:00:08]} Qc3 {[%emt 0:00:05][%cal Od3d2]} 39. Bf4 {[%emt 0:00:16] Prevents d2} Qd4 {[%emt 0:00:04]} (39... Qxa3 40. Bh6 $17) (39... Qe1 $19 40. Bh6 Qxh4+ 41. Kg1 Qe1+ 42. Kh2 Bd7) 40. Qd2 $17 {[%emt 0:00:10]} Be6 {[%emt 0:00:29]} 41. Qe3 {[%emt 0:00:25]} Qb2+ {[%emt 0:00:06]} 42. Kg3 {[%emt 0:00:01]} Qa1 {[%emt 0:00:21]} 43. Qc1 {[%emt 0:00:13] Wards off Qh1} Qa2 {[%emt 0:00:15]} (43... Qd4 {simplifies} 44. Qe3 Qxe3 45. Bxe3 Bf5) 44. Qc3 {[%emt 0:00:15]} Qe2 {[%emt 0:00:12]} 45. Qd2 {[%emt 0:00:18]} Qf1 {[%emt 0:00:01]} 46. Qg2 {[%emt 0:00:14] Prevents Qh3+} Qe1+ {[%emt 0:00:01]} 47. Qf2 {[%emt 0:00:04]} Qc3 {[%emt 0:00:13][%cal Oc3a1]} 48. Bd2 {[%emt 0:00:14]} Qxa3 {[%emt 0:00:18]} 49. Qd4 {[%emt 0:00:00] Inhibits Qa1.} Qb3 $1 {[%emt 0:00:40]} 50. Bc3 {[%emt 0:00:02]} Qb8+ {[%emt 0:00:01]} 51. Kf2 {[%emt 0:00:28]} Qh2+ {[%emt 0:00:02]} 52. Ke3 {[%emt 0:00:01]} Qe2+ {[%emt 0:02:05]} (52... Qg1+ $15 53. Kxd3 Qxd4+ 54. Kxd4 Ba2) 53. Kf4 $11 {[%emt 0:00:01]} Ke8 {[%emt 0:00:05]} 54. Qxf6 {[%emt 0:00:17]} d2 {[%emt 0:00:08]} 55. Qh8+ {[%emt 0:00:03]} Kd7 {[%emt 0:00:01]} (55... Ke7 $2 56. Bf6+ (56. Qxh5 d1=Q) 56... Kf7 57. Qg7+ Ke8 58. Qe7#) 56. Qd4+ {[%emt 0:00:09]} Bd5 {[%emt 0:00:00]} 57. Bxd2 {[%emt 0:00:12]} Qxf3+ {[%emt 0:00:02]} 58. Kg5 {[%emt 0:00:01]} Kc8 {[%emt 0:00:02]} 59. Bf4 {[%emt 0:00:02]} (59. Qf4 Qxf4+ 60. Bxf4 Bf3 $17) 59... Qg4+ {[%emt 0:00:02]} 60. Kh6 {[%emt 0:00:01]} Qxh4 {[%emt 0:00:18]} ({Better is} 60... Qe6+ $17 61. Kg5 Qg8+ 62. Kh6 Qf8+ 63. Kg5 Qg8+ 64. Kh6 Qf8+ 65. Kg5 Qd8+ 66. Kh6 (66. Qf6 Qxf6+ 67. Kxf6 Kb7 $17) 66... Qf8+) 61. Qe5 {[%emt 0:00:01][%csl Gf4][%cal Re5c7]} Kb7 {[%emt 0:00:00]} 62. Qg7+ {[%emt 0:00:01]} (62. Bg3 Qe4 63. Qxe4 Bxe4 64. Kxh5 a5 $17) 62... Ka6 {[%emt 0:00:02]} 63. Qa1+ {[%emt 0:00:02]} (63. Bb8 Kb5 64. Qb7+ Kc4 65. Qa6+ Kb3 66. Qd3+ Kb4 67. Qd2+ Kb5 68. Qd3+ Bc4 69. Qb1+ Ka4 70. Qd1+ (70. Qa1+ Kb4 $17) 70... Kb4 71. Qd2+ Kb5 72. Qb2+ Ka4 73. Qc2+ Kb4 74. Qd2+ (74. Qb2+ Ka4 $17) 74... Kb5 75. Qb2+ Ka4 76. Qc2+ Kb4 77. Qb2+ Bb3 78. Qd2+ (78. Be5 $2 Qc4 $17) 78... Ka4 $17) 63... Kb5 {[%emt 0:00:01]} 64. Qb2+ {[%emt 0:00:00]} Kc4 {[%emt 0:00:11]} 65. Qc2+ {[%emt 0:00:01]} Kb4 {[%emt 0:00:14]} (65... Kd4 $5 {[%cal Rh4f4]} 66. Qd2+ Ke4 67. Qe3+ Kf5 $15) 66. Qb2+ {[%emt 0:00:08]} Kxc5 {[%emt 0:00:15]} 67. Qc3+ {[%emt 0:00:04]} Kb5 {[%emt 0:00:01]} 68. Qb2+ {[%emt 0:00:00]} Kc4 {[%emt 0:00:03]} 69. Qc2+ {[%emt 0:00:02] [#]} (69. Qc1+ $11 Kb5 70. Qb2+ Kc4 71. Qc1+ Kd4 72. Qe3+ Kc4 73. Qc1+) 69... Kd4 $1 $17 {[%emt 0:00:06]} (69... Kb5 $6 70. Qb1+ Kc5 71. Qg1+ Kb4 72. Qb1+ Kc5 73. Qg1+ Kc4 74. Qc1+ Kb3 75. Qb1+ Kc4 76. Qc1+ Kd4 77. Qe3+ Kc4 78. Qc1+ $11) 70. Qd2+ {[%emt 0:00:03] [#]} Kc5 {[%emt 0:00:00]} ({Black should try} 70... Ke4 $1 $17 71. Qe3+ Kf5 72. Qe5+ Kg4) 71. Qc3+ $11 {[%emt 0:00:01] The position is equal.} Kb6 {[%emt 0:00:01]} 72. Qb4+ {[%emt 0:00:01]} Ka6 {[%emt 0:00:01]} 73. Qa4+ {[%emt 0:00:04]} Kb7 {[%emt 0:00:00] aiming for ...Qf6+.} 74. Qb4+ {[%emt 0:00:00]} Kc8 {[%emt 0:00:02] Threatens to win with ...Qf6+.} 75. Qb8+ {[%emt 0:00:03]} Kd7 {[%emt 0:00:00] And now ...Qf6+ would win.} 76. Qd6+ {[%emt 0:00:00]} Ke8 {[%emt 0:00:01]} 77. Qg6+ {[%emt 0:00:03]} (77. Bg5 $5 Qe4 $8 78. Qd8+ Kf7 79. Qf6+ Ke8 80. Qh8+ Kf7 81. Qg7+ (81. Qf6+ Ke8 $11) 81... Ke8 82. Qh8+ Kf7 83. Qg7+ (83. Qf6+ Ke8 $11) 83... Ke8 84. Qh8+ $11) 77... Kd7 {[%emt 0:00:06]} 78. Qd6+ {[%emt 0:00:00]} Ke8 {[%emt 0:00:01]} 79. Qg6+ {[%emt 0:00:00]} (79. Bg5 $5 Qe4 $8 80. Qd8+ Kf7 81. Qf6+ Ke8 82. Qh8+ Kf7 83. Qg7+ (83. Qf6+ Ke8 $11) 83... Ke8 84. Qh8+ Kf7 85. Qg7+ (85. Qf6+ Ke8 $11) 85... Ke8 86. Qh8+ $11) 79... Kd7 {[%emt 0:00:06]} 80. Qd6+ {[%emt 0:00:01] Whites escaped into a draw.   Weighted Error Value: White=0.35/Black=0.27 (precise)} 1/2-1/2

[Event "CCT Airthings Masters Play-In 2023"]
[Site "Online"]
[Date "2023.02.03"]
[Round "4"]
[White "Rakhmanov_Aleksandr"]
[Black "GGuseinov"]
[Result "0-1"]
[ECO "A24"]
[WhiteElo "2532"]
[BlackElo "2635"]
[Annotator "TA"]
[PlyCount "128"]
[EventDate "2023.02.03"]
[EventType "swiss"]
[EventCountry "NET"]
[SourceTitle "playchess.com"]
[Source "ChessBase"]
[SourceQuality "1"]
[TimeControl "600+2"]

{[%evp 17,128,37,58,49,65,54,54,28,65,31,23,16,15,16,12,0,1,9,85,81,90,88,89,78,131,109,188,178,172,97,97,84,87,91,94,0,23,9,10,0,0,0,0,0,0,0,0,0,0,-24,-29,-54,-56,-577,-557,-539,-532,-511,-456,-404,-361,-354,-326,-12839,-288,-276,-235,-379,-370,-370,-364,-351,-353,-580,-533,-12838,-469,-479,-464,-1014,-1469,-1216,-1134,-12839,-12839,-12839,-12834,-12839,-12839,-12842,-12842,-12843,-12844,-12846,0,-12841,-12842,-12842,-12839,-12847,-12847,-29992,-12843,-12843,-12843,-12844,-12844,-12845,-12845,-12845,-12846,-12849,-12849]} 1. c4 {[%emt 0:00:11]} Nf6 {[%emt 0:00:08]} 2. Nc3 {[%emt 0:00:01]} g6 {[%emt 0:00:01]} 3. g3 {[%emt 0:00:02]} Bg7 {[%emt 0:00:01]} 4. Bg2 {[%emt 0:00:00]} O-O {[%emt 0:00:01]} 5. d3 {[%emt 0:00:00]} d6 {[%emt 0:00:02]} 6. h3 {[%emt 0:00:02]} e5 {[%emt 0:00:01]} 7. e4 {[%emt 0:00:03]} c6 {[%emt 0:00:10]} 8. Nge2 {[%emt 0:00:02]} Na6 {[%emt 0:00:10][%cal Bb8a6,Ba6c5,Bc5e6,Be6g7][%mdl 32]} 9. O-O {[%emt 0:00:05]} Nc5 {[%emt 0:00:02]} 10. Be3 {[%emt 0:00:15] A24: English Opening vs King's Indian: Lines without ...Nc6.} a5 {[%emt 0:00:04]} 11. f4 {[%emt 0:00:07]} exf4 {[%emt 0:00:14]} 12. gxf4 {[%emt 0:00:00] White is slightly better.} Re8 {[%emt 0:00:06] [#]} 13. e5 $146 {[%emt 0:00:35]} ({Predecessor:} 13. Ng3 Nfd7 14. Qd2 a4 15. d4 Ne6 16. f5 Nc7 17. Kh2 a3 18. b4 c5 19. bxc5 dxc5 {1-0 Wagner,D (2576)-Mortazavi,A (2333) Titled Tuesday intern op 19th Oct blitz 2021 (6)}) 13... Nh5 {[%emt 0:00:11]} 14. d4 {[%emt 0:00:02]} Ne6 {[%emt 0:00:56]} 15. Ne4 {[%emt 0:00:19]} Bf8 {[%emt 0:00:06]} 16. f5 {[%emt 0:01:01]} Neg7 {[%emt 0:00:01][%csl LRe5,LRf5]} 17. Bg5 $36 {[%emt 0:01:49][%mdl 2048] White is more active.} Qb6 {[%emt 0:00:02] Black is weak on the dark squares} (17... Qc7 $1 $11 {remains equal.}) 18. fxg6 $16 {[%emt 0:00:29]} (18. exd6 $6 Nxf5 19. c5 Qxb2 $11) 18... hxg6 {[%emt 0:00:07]} 19. Nxd6 {[%emt 0:01:13]} Bxd6 {[%emt 0:00:20]} 20. exd6 {[%emt 0:00:00]} Qxb2 {[%emt 0:00:44]} (20... f6 $142) 21. Rf2 $1 {[%emt 0:00:15]} Qa3 {[%emt 0:00:24]} (21... f6 $16) 22. c5 $18 {[%emt 0:00:30]} Bf5 {[%emt 0:00:46]} 23. Nf4 {[%emt 0:00:46]} (23. Rc1 $18) 23... Qg3 $16 {[%emt 0:01:08]} 24. Nxh5 {[%emt 0:01:08]} Qxg5 {[%emt 0:00:12]} 25. Nxg7 {[%emt 0:00:01]} Kxg7 {[%emt 0:00:00] [#]} 26. d5 {[%emt 0:00:11]} (26. Qd2 $1 $16 {[%cal Rd2g5]} Qe3 27. Rc1) 26... Re3 {[%emt 0:01:38]} 27. Qd4+ {[%emt 0:00:11]} f6 {[%emt 0:00:01]} 28. dxc6 {[%emt 0:00:43]} (28. h4 $5 Qg3 $8 29. Qb2 $11) 28... bxc6 {[%emt 0:00:02]} 29. h4 {[%emt 0:00:27]} Qg3 {[%emt 0:00:03] aiming for ...Re4. Dancing on a razor blade.} 30. Qf4 {[%emt 0:00:25] Repels Re4} Qxf4 {[%emt 0:00:24]} 31. Rxf4 {[%emt 0:00:00]} Rc3 {[%emt 0:00:01]} 32. Bxc6 {[%emt 0:00:01]} Rd8 {[%emt 0:00:03]} 33. Be4 {[%emt 0:00:05]} Be6 {[%emt 0:00:31]} (33... Rxc5 34. Bxf5 gxf5 35. Rd1 $14) 34. c6 {[%emt 0:00:06] Hoping for Rd1.} (34. Raf1 f5 35. Bf3 Rxc5 $17) 34... Rxd6 {[%emt 0:00:02]} 35. Bf3 $2 {[%emt 0:00:02][%mdl 8192] [#]} (35. Bg2 $15) 35... g5 $1 $19 {[%emt 0:00:06]} 36. hxg5 {[%emt 0:00:01]} fxg5 {[%emt 0:00:00]} 37. Re4 {[%emt 0:00:03][%cal Oa1e1]} Rxf3 {[%emt 0:00:04]} 38. Rc1 {[%emt 0:00:04]} Rf8 {[%emt 0:00:08]} ({Not} 38... Bxa2 39. c7 Rf8 40. c8=Q Rxc8 41. Rxc8 $11) 39. Re5 {[%emt 0:00:02]} Kg6 {[%emt 0:00:38]} ({Inferior is} 39... Bxa2 40. Rxa5 Be6 41. Rxg5+ Kh6 42. Rg3 $15) 40. Rxa5 $2 {[%emt 0:00:00]} (40. a4) 40... Rc8 $2 {[%emt 0:00:04]} (40... Rd4 {( -> ...Rg4+)} 41. Rc2 Bd5 42. Rxd5 Rxd5) 41. c7 {[%emt 0:00:02]} g4 {[%emt 0:00:06]} 42. Rb5 {[%emt 0:00:02]} (42. a3 $142) 42... Bxa2 {[%emt 0:00:17]} 43. Kf2 {[%emt 0:00:02]} Be6 {[%emt 0:00:09]} 44. Kg3 {[%emt 0:00:01]} Rd3+ {[%emt 0:00:02]} 45. Kf4 $2 {[%emt 0:00:01]} (45. Kg2 {is a better defense.}) 45... Kf6 {[%emt 0:00:01] ...Rf3+ is the strong threat.} 46. Rh5 {[%emt 0:00:03]} Ke7 {[%emt 0:00:06]} (46... Rf3+ $142 47. Ke4 Bf5+ 48. Kd5 Rd3+ 49. Kc6 Be4+ 50. Kb5 Rb3+ 51. Ka4 Rb7) 47. Rh7+ {[%emt 0:00:03]} Kd6 {[%emt 0:00:01]} 48. Rh6 {[%emt 0:00:00]} (48. Ke4 $142 Rd5 49. Rh6 Re5+ 50. Kd4) 48... Rf3+ {[%emt 0:00:20]} (48... Rxc7 49. Rxc7 Kxc7 50. Rxe6 $11) 49. Ke4 {[%emt 0:00:02]} Rf7 {[%emt 0:00:01]} ({Worse is} 49... Rxc7 50. Rxc7 Kxc7 51. Rxe6 $11) 50. Kd4 {[%emt 0:00:05]} Rcxc7 {[%emt 0:00:05]} 51. Re1 {[%emt 0:00:01]} Rce7 {[%emt 0:00:03]} 52. Re4 {[%emt 0:00:01]} Rg7 {[%emt 0:00:08]} 53. Re1 {[%emt 0:00:01]} g3 {[%emt 0:00:03]} 54. Rg1 {[%emt 0:00:01]} Ra7 {[%emt 0:00:02]} 55. Re1 {[%emt 0:00:02]} Rae7 {[%emt 0:00:03]} 56. Rg1 {[%emt 0:00:01]} Rg4+ {[%emt 0:00:01]} 57. Ke3 {[%emt 0:00:01]} Ke5 {[%emt 0:00:07]} 58. Kf3 {[%emt 0:00:02]} Rf7+ {[%emt 0:00:08]} 59. Ke3 {[%emt 0:00:01]} Bd5 {[%emt 0:00:07]} (59... Re4+ $142 60. Kd3 Rd7+ 61. Kc3 Rc4+ 62. Kb3 Rb7+ 63. Ka3 Rc3+ 64. Ka4 Bd7+ 65. Rc6 Bxc6+ 66. Ka5 Ra3#) 60. Rh5+ {[%emt 0:00:03] Black is clearly winning.} Rf5 {[%emt 0:00:01]} 61. Rh8 {[%emt 0:00:01]} g2 {[%emt 0:00:09]} 62. Re8+ {[%emt 0:00:01]} Kf6 {[%emt 0:00:02]} 63. Rf8+ {[%emt 0:00:02]} Kg5 {[%emt 0:00:00]} 64. Rg8+ {[%emt 0:00:01]} Bxg8 {[%emt 0:00:02] Black used his chance.   Weighted Error Value: White=0.78/Black=0.37} 0-1

[Event "CCT Airthings Masters Play-In 2023"]
[Site "Online"]
[Date "2023.02.03"]
[Round "4"]
[White "Igrok"]
[Black "ChristopherYoo"]
[Result "1-0"]
[ECO "E32"]
[WhiteElo "2529"]
[BlackElo "2621"]
[Annotator "TA"]
[PlyCount "39"]
[EventDate "2023.02.03"]
[EventType "swiss"]
[EventCountry "NET"]
[SourceTitle "playchess.com"]
[Source "ChessBase"]
[SourceQuality "1"]
[TimeControl "600+2"]

{[%evp 16,39,0,0,2,0,12,0,11,14,38,33,35,47,35,3,322,332,495,507,504,494,720,687,2317,2336]} 1. d4 {[%emt 0:00:03]} Nf6 {[%emt 0:00:04]} 2. c4 {[%emt 0:00:01]} e6 {[%emt 0:00:01]} 3. Nc3 {[%emt 0:00:01]} Bb4 {[%emt 0:00:03]} 4. Qc2 {[%emt 0:00:02]} O-O {[%emt 0:00:05]} 5. a3 {[%emt 0:00:00]} Bxc3+ {[%emt 0:00:03]} 6. Qxc3 {[%emt 0:00:01]} b6 {[%emt 0:00:01]} 7. Bg5 {[%emt 0:00:01]} Bb7 {[%emt 0:00:02]} 8. e3 {[%emt 0:00:02]} h6 {[%emt 0:00:01]} 9. Bh4 {[%emt 0:00:01]} d6 {[%emt 0:00:00] E32: Nimzo-Indian: Classical (4 Qc2): 4...0-0.} 10. Ne2 {[%emt 0:00:04]} Nbd7 {[%emt 0:00:07]} 11. Qc2 {[%emt 0:00:02]} c5 {[%emt 0:00:05] The position is equal.} 12. Rd1 {[%emt 0:00:04][%cal Ba1d1,Bd1d4,Bd4f4,Bf4g4,Bg4g7][%mdl 32]} Rc8 {[%emt 0:00:20][%cal Ob6b5]} 13. Nc3 {[%emt 0:00:02]} cxd4 {[%emt 0:00:59]} 14. Rxd4 {[%emt 0:00:04]} Ne5 {[%emt 0:00:05] [#]} 15. Be2 $146 {[%emt 0:02:19]} ({Predecessor:} 15. Bg3 Qe7 16. Nb5 Nc6 17. Rd1 e5 18. Nxd6 Nd4 19. exd4 Qxd6 20. dxe5 Qe7 21. Be2 {1-0 Van Wely,L (2680)-Wells,P (2517) Staunton Memorial 5th 2007 (7)}) 15... Bxg2 $2 {[%emt 0:00:41][%mdl 8192] This move loses the game for Black.} (15... Nc6 $11 {and Black has nothing to worry.} 16. Rd2 (16. Bxf6 Nxd4 17. Bxd4 e5 $17) 16... Ne5) 16. Rg1 $18 {[%emt 0:00:02]} Bb7 {[%emt 0:00:02] [#]} (16... Bf3 {might work better.} 17. Bxf6 Qxf6) 17. Rf4 $1 {[%emt 0:00:39] White is clearly winning.} Ned7 {[%emt 0:02:18] [#]} 18. Rfg4 $1 {[%emt 0:00:09]} Kh8 {[%emt 0:00:36]} (18... g5 $2 19. Bxg5 Nxg4 20. Bxd8 Rcxd8 21. Rxg4+) (18... Nxg4 $142 19. Bxd8 Nxe3 20. fxe3 Rcxd8) 19. Rxg7 {[%emt 0:00:05]} Qc7 {[%emt 0:00:07]} 20. e4 {[%emt 0:00:44] Weighted Error Value: White=0.04 (flawless) /Black=0.77} 1-0

[Event "CCT Airthings Masters Play-In 2023"]
[Site "Online"]
[Date "2023.02.03"]
[Round "4"]
[White "viviania"]
[Black "BrandonJacobson"]
[Result "1-0"]
[ECO "E81"]
[WhiteElo "2529"]
[BlackElo "2355"]
[Annotator "TA"]
[PlyCount "57"]
[EventDate "2023.02.03"]
[EventType "swiss"]
[EventCountry "NET"]
[SourceTitle "playchess.com"]
[Source "ChessBase"]
[SourceQuality "1"]
[TimeControl "600+2"]

{[%evp 13,57,29,27,0,27,31,32,37,58,36,69,62,97,106,104,104,101,100,111,97,152,164,172,163,185,170,208,186,186,148,179,173,292,211,301,302,283,266,286,309,719,716,719,592,606,579]} 1. d4 {[%emt 0:00:45]} Nf6 {[%emt 0:00:04]} 2. c4 {[%emt 0:00:01]} g6 {[%emt 0:00:01]} 3. Nc3 {[%emt 0:00:01]} Bg7 {[%emt 0:00:01]} 4. e4 {[%emt 0:00:02]} d6 {[%emt 0:00:00]} 5. f3 {[%emt 0:00:01]} O-O {[%emt 0:00:02]} 6. Bg5 {[%emt 0:00:01]} Nc6 {[%emt 0:00:58]} 7. Nge2 {[%emt 0:00:02][%cal Bg1e2,Be2d4,Bd4c2][%mdl 32]} a6 {[%emt 0:00:01]} 8. d5 {[%emt 0:00:39] E81: King's Indian: Sämisch: 6th move deviations (including 6 Be3 c6).} Na5 {[%emt 0:00:13]} 9. Nd4 {[%emt 0:00:05]} c5 {[%emt 0:00:05]} 10. Nc2 {[%emt 0:00:01] [#] White is slightly better.} b5 $146 {[%emt 0:00:19]} ({Predecessor:} 10... Rb8 11. Qd2 Bd7 12. Bh6 Bxh6 13. Qxh6 b5 14. b3 bxc4 15. bxc4 e5 16. Bd3 Nh5 {1-0 Pechisker,A (2293)-Yoos,J (2417) British Columbia-ch 2011 (4.3)}) 11. cxb5 {[%emt 0:00:07]} axb5 {[%emt 0:00:00]} 12. Bxb5 {[%emt 0:00:01]} Ba6 {[%emt 0:00:18]} 13. Bxa6 {[%emt 0:00:05]} Rxa6 {[%emt 0:00:00]} 14. Qe2 {[%emt 0:00:01]} Rb6 {[%emt 0:01:04]} 15. Rb1 {[%emt 0:00:02]} Nd7 {[%emt 0:00:04] [#] And now ...Bxc3+ would win.} 16. O-O {[%emt 0:00:14]} Ne5 {[%emt 0:00:19]} (16... c4 $142) 17. b3 $16 {[%emt 0:00:05]} Qd7 {[%emt 0:00:07]} 18. Bd2 {[%emt 0:00:34] Strongly threatening f4.} Ra8 {[%emt 0:00:08]} 19. Kh1 {[%emt 0:00:22]} Nb7 {[%emt 0:00:23]} 20. a4 {[%emt 0:00:10]} Na5 {[%emt 0:00:30]} 21. f4 {[%emt 0:00:11]} Ng4 {[%emt 0:00:12]} 22. Nb5 {[%emt 0:00:01]} f5 {[%emt 0:01:02]} (22... Nf6 {was called for.} 23. Bc3 Rbb8) 23. Nca3 {[%emt 0:01:21]} Rb7 {[%emt 0:00:07]} (23... Nf6 $142) 24. Qe1 $18 {[%emt 0:00:33]} Nxb3 {[%emt 0:00:22]} 25. Rxb3 {[%emt 0:00:01] Hoping for a5.} Rxa4 {[%emt 0:00:01]} 26. exf5 {[%emt 0:00:01]} Qxf5 {[%emt 0:00:01] [#]} (26... gxf5 27. Rg3 Kf8) 27. Nxd6 $1 {[%emt 0:00:16][%mdl 576] Discovered Attack. White is clearly winning.} exd6 {[%emt 0:00:09]} 28. Qe8+ {[%emt 0:00:18]} Bf8 {[%emt 0:00:19]} 29. Qxa4 {[%emt 0:00:01] Black did not feel at home in the position after the opening.   Weighted Error Value: White=0.21 (precise) /Black=0.30} 1-0

[Event "CCT Airthings Masters Play-In 2023"]
[Site "Online"]
[Date "2023.02.03"]
[Round "4"]
[White "promen"]
[Black "chessdjw"]
[Result "1-0"]
[ECO "E46"]
[WhiteElo "2520"]
[BlackElo "2271"]
[Annotator "TA"]
[PlyCount "51"]
[EventDate "2023.02.03"]
[EventType "swiss"]
[EventCountry "NET"]
[SourceTitle "playchess.com"]
[Source "ChessBase"]
[SourceQuality "1"]
[TimeControl "600+2"]

{[%evp 16,51,-9,-6,-3,-33,-16,-38,-32,-35,-23,-20,-21,-32,-16,-70,-72,-93,-39,-43,-10,-99,-56,-116,483,498,579,562,590,573,803,797,787,789,787,780,854,845]} 1. d4 {[%emt 0:00:03]} Nf6 {[%emt 0:00:05]} 2. c4 {[%emt 0:00:01]} e6 {[%emt 0:00:03]} 3. Nc3 {[%emt 0:00:03]} Bb4 {[%emt 0:00:01]} 4. e3 {[%emt 0:00:01]} O-O {[%emt 0:00:03]} 5. Nge2 {[%emt 0:00:02]} d5 {[%emt 0:00:12]} 6. a3 {[%emt 0:00:05]} Be7 {[%emt 0:00:03]} 7. Ng3 {[%emt 0:00:22]} c5 {[%emt 0:00:20]} 8. dxc5 {[%emt 0:00:10]} dxc4 {[%emt 0:00:12]} 9. Bxc4 {[%emt 0:01:01]} (9. Qc2 {keeps more tension.} b5 10. cxb6 Ba6 11. bxa7 Nbd7 12. Be2) 9... Qxd1+ {[%emt 0:00:03] E46: Nimzo-Indian: Rubinstein: 4 e3 0-0 5 Ne2 without early Bd3.} 10. Kxd1 {[%emt 0:00:03]} Bxc5 {[%emt 0:00:00]} 11. b4 {[%emt 0:00:01]} Be7 {[%emt 0:00:10] Black is slightly better.} 12. Bb2 {[%emt 0:00:04]} b6 {[%emt 0:00:06]} 13. Ke2 {[%emt 0:01:28]} Bb7 {[%emt 0:00:03]} 14. Rhd1 {[%emt 0:00:13] [#]} Nbd7 $146 {[%emt 0:00:52] ...Ne5 would be deadly.} ({Predecessor:} 14... Bxg2 15. f3 Nbd7 16. Nce4 Rfc8 17. Bd3 h5 18. h4 Rc7 19. Rd2 a5 20. b5 Bh3 {1-0 Cruz,C (2563)-Bachmann,A (2652) Benasque op 34th 2014 (7)}) 15. Nge4 {[%emt 0:00:38]} Ne5 $15 {[%emt 0:00:27]} ({Resist} 15... Bxe4 16. Nxe4 Nxe4 17. Rxd7 $14) 16. Nd2 {[%emt 0:01:26]} Bxg2 {[%emt 0:02:05]} ({Better is} 16... Rad8 $17 {[%cal Od8d2] Hoping for ...Rxd2+!} 17. Bb3 Nd3) 17. Ba6 $1 {[%emt 0:00:04]} Rfd8 {[%emt 0:00:23]} 18. f3 {[%emt 0:00:06]} (18. Nb5 $1 $11 Ng6 19. Rg1) 18... h5 {[%emt 0:01:03]} 19. Nb5 {[%emt 0:00:36] [#]} (19. Rac1 $15) 19... Rd7 $2 {[%emt 0:00:15][%mdl 8192] A mistake that costs the game.} 20. Bxe5 $18 {[%emt 0:00:03] White is clearly winning.} Rad8 {[%emt 0:00:09]} 21. Nd4 {[%emt 0:00:04][%cal Bb5d4,Bd4c6,Bc6d8,Bd8b7][%mdl 32]} Nd5 {[%emt 0:00:07]} 22. Nc6 {[%emt 0:00:19]} Bd6 {[%emt 0:00:14]} 23. Bxd6 {[%emt 0:00:35]} Nc3+ {[%emt 0:00:02]} 24. Kf2 {[%emt 0:00:03]} Rxd6 {[%emt 0:00:01]} 25. Nxd8 {[%emt 0:00:05]} Bh3 {[%emt 0:00:04]} 26. Nb7 {[%emt 0:00:09] Weighted Error Value: White=0.22 (precise) /Black=0.60} 1-0